[Event "27th Keres Memorial 2018"]
[Site "Tallinn"]
[Date "2018.01.13"]
[Round "2"]
[White "Lumiste, Rene"]
[Black "Olkhovskiy, Alexander"]
[Result "0-1"]
[ECO "A06"]
[WhiteElo "2118"]
[BlackElo "2115"]
[Annotator "ChessBase"]
[PlyCount "74"]
[EventDate "2018.??.??"]
[EventType "swiss"]
[EventCountry "EST"]
[SourceTitle "playchess.com"]
[Source "ChessBase"]
[SourceQuality "1"]
[TimeControl "900+5"]

1. Nf3 {[%emt 0:00:00]} d5 {[%emt 0:00:29]} 2. g3 {[%emt 0:00:00]} g6 {[%emt 0:00:11]} 3. Bg2 {[%emt 0:00:03]} Bg7 {[%emt 0:00:02]} 4. O-O {[%emt 0:00:03]} e5 {[%emt 0:00:04]} 5. d3 {[%emt 0:00:01]} Ne7 {[%emt 0:00:04]} 6. e4 {[%emt 0:00:09]} O-O {[%emt 0:00:06]} 7. Nc3 {[%emt 0:01:06]} c6 {[%emt 0:00:22]} 8. Qe2 {[%emt 0:00:11]} d4 {[%emt 0:00:01]} 9. Nb1 {[%emt 0:00:27]} h6 {[%emt 0:00:06]} 10. Ne1 {[%emt 0:00:24]} c5 {[%emt 0:00:42]} 11. f4 {[%emt 0:00:15]} Nbc6 {[%emt 0:00:01]} 12. Nd2 {[%emt 0:00:28]} Kh7 {[%emt 0:00:27]} 13. a4 {[%emt 0:00:24]} exf4 {[%emt 0:00:30]} 14. gxf4 {[%emt 0:00:21]} Nb4 {[%emt 0:00:01]} 15. Nc4 {[%emt 0:02:01]} f5 {[%emt 0:00:01]} 16. Bd2 {[%emt 0:00:44]} fxe4 {[%emt 0:00:31]} 17. dxe4 {[%emt 0:01:52]} Nxc2 {[%emt 0:00:02]} 18. Nxc2 {[%emt 0:00:23]} d3 {[%emt 0:00:01]} 19. Qd1 {[%emt 0:00:25]} dxc2 {[%emt 0:00:02]} 20. Qxc2 {[%emt 0:00:02]} Nc6 {[%emt 0:00:01]} 21. e5 {[%emt 0:00:54]} Bf5 {[%emt 0:01:14]} 22. Qc3 {[%emt 0:01:33]} Nd4 {[%emt 0:00:02]} 23. Rae1 {[%emt 0:00:08]} Nc2 {[%emt 0:01:41]} 24. Rc1 {[%emt 0:00:35]} Nb4 {[%emt 0:00:01]} 25. Qe3 {[%emt 0:01:02]} Nd3 {[%emt 0:00:16]} 26. Rc3 {[%emt 0:00:01]} Qd4 {[%emt 0:00:14]} 27. b3 {[%emt 0:01:54]} Rad8 {[%emt 0:00:22]} 28. Bxb7 {[%emt 0:01:07]} Be6 {[%emt 0:02:06]} 29. Qxd4 {[%emt 0:00:10]} Rxd4 {[%emt 0:00:10]} 30. Be3 {[%emt 0:00:01]} Rdd8 {[%emt 0:01:03]} 31. Be4 {[%emt 0:00:02]} Bf5 {[%emt 0:00:01]} 32. Bxd3 {[%emt 0:00:30]} Rxd3 {[%emt 0:00:39]} 33. Rxd3 {[%emt 0:00:02]} Bxd3 {[%emt 0:00:01]} 34. Rc1 {[%emt 0:00:19]} a6 {[%emt 0:01:10]} 35. Rc3 {[%emt 0:00:10]} Be4 {[%emt 0:00:00]} 36. Nd6 {[%emt 0:00:02]} Bd5 {[%emt 0:00:01]} 37. Rxc5 Bxb3 0-1

[Event "27th Keres Memorial 2018"]
[Site "Tallinn"]
[Date "2018.01.13"]
[Round "4"]
[White "Neff, Sergei"]
[Black "Ahvenjarvi, Jani"]
[Result "0-1"]
[ECO "A06"]
[WhiteElo "2103"]
[BlackElo "2388"]
[Annotator "NA"]
[PlyCount "72"]
[EventDate "2018.??.??"]
[EventType "swiss"]
[EventCountry "EST"]
[SourceTitle "playchess.com"]
[Source "ChessBase"]
[SourceQuality "1"]
[TimeControl "900+5"]

1. Nf3 {[%emt 0:00:00]} d5 {[%emt 0:00:02]} 2. g3 {[%emt 0:00:00]} c6 {[%emt 0:00:02]} 3. Bg2 {[%emt 0:00:02]} Bg4 {[%emt 0:00:02]} 4. O-O {[%emt 0:00:11]} Nd7 {[%emt 0:00:03]} 5. d3 {[%emt 0:00:07]} e5 {[%emt 0:00:02]} 6. h3 {[%emt 0:00:05]} Bh5 {[%emt 0:00:08]} 7. e4 {[%emt 0:00:04]} dxe4 {[%emt 0:00:02]} 8. dxe4 {[%emt 0:00:02]} Ngf6 {[%emt 0:00:03]} 9. Nbd2 {[%emt 0:00:22]} Be7 {[%emt 0:00:03]} 10. Qe2 {[%emt 0:00:36]} O-O {[%emt 0:00:05]} 11. a4 {[%emt 0:01:34]} a5 {[%emt 0:00:09]} 12. Rd1 {[%emt 0:00:46]} Qc7 {[%emt 0:00:02]} 13. Nf1 {[%emt 0:00:15]} Nc5 {[%emt 0:00:11]} 14. g4 {[%emt 0:00:25]} Bg6 {[%emt 0:00:03]} 15. N3d2 {[%emt 0:00:01]} Nfd7 {[%emt 0:00:19]} 16. Ng3 {[%emt 0:00:18]} Bg5 {[%emt 0:00:27]} 17. Nf5 {[%emt 0:02:03]} Ne6 {[%emt 0:00:16]} 18. Nc4 {[%emt 0:00:40]} Bxc1 {[%emt 0:00:15]} 19. Raxc1 {[%emt 0:00:05]} Ndc5 {[%emt 0:00:07]} 20. b3 {[%emt 0:00:45]} Nf4 {[%emt 0:00:15]} 21. Qe3 {[%emt 0:00:15]} Nce6 {[%emt 0:00:06]} 22. Bf1 {[%emt 0:00:50]} Rfd8 {[%emt 0:00:14]} 23. c3 {[%emt 0:01:29]} h5 {[%emt 0:00:20]} 24. Qb6 {[%emt 0:00:25]} Rxd1 {[%emt 0:01:31]} 25. Rxd1 {[%emt 0:00:02]} Qxb6 {[%emt 0:00:07]} 26. Nxb6 {[%emt 0:00:02]} Re8 {[%emt 0:00:02]} 27. b4 {[%emt 0:01:59]} axb4 {[%emt 0:00:14]} 28. cxb4 {[%emt 0:00:02]} Bxf5 {[%emt 0:00:14]} 29. exf5 {[%emt 0:01:07]} Nd4 {[%emt 0:00:05]} 30. a5 {[%emt 0:00:34]} f6 {[%emt 0:00:55]} 31. Nc4 {[%emt 0:00:24]} g6 {[%emt 0:00:25]} 32. fxg6 {[%emt 0:00:05]} hxg4 {[%emt 0:00:02]} 33. hxg4 {[%emt 0:00:03]} Nf3+ {[%emt 0:00:19]} 34. Kh1 {[%emt 0:00:13]} Kg7 {[%emt 0:00:01]} 35. Rd7+ {[%emt 0:00:33]} Kxg6 {[%emt 0:00:02]} 36. Bh3 {[%emt 0:00:01]} Rh8 {[%emt 0:00:10]} 0-1

[Event "27th Keres Memorial 2018"]
[Site "Tallinn"]
[Date "2018.01.14"]
[Round "8.10"]
[White "Volodin, Aleksandr"]
[Black "Shvyrjov, Igor"]
[Result "1-0"]
[ECO "B07"]
[WhiteElo "2397"]
[BlackElo "2310"]
[Annotator "ChessBase"]
[PlyCount "97"]
[EventDate "2018.??.??"]
[EventType "swiss"]
[EventCountry "EST"]
[SourceTitle "playchess.com"]
[Source "ChessBase"]
[SourceQuality "1"]
[TimeControl "900+5"]

1. d4 {[%emt 0:00:00]} d6 {[%emt 0:00:06]} 2. e4 {[%emt 0:00:28]} Nf6 {[%emt 0:00:05]} 3. Bd3 {[%emt 0:00:01]} Nc6 {[%emt 0:00:13]} 4. c3 {[%emt 0:00:16]} g6 {[%emt 0:00:04]} 5. Nf3 {[%emt 0:00:07]} Bg7 {[%emt 0:00:06]} 6. O-O {[%emt 0:00:03]} O-O {[%emt 0:00:01]} 7. h3 {[%emt 0:00:21]} e5 {[%emt 0:00:15]} 8. Re1 {[%emt 0:00:23]} h6 {[%emt 0:00:18]} 9. Nbd2 {[%emt 0:00:26]} Nh5 {[%emt 0:01:23]} 10. Nf1 {[%emt 0:00:06]} exd4 {[%emt 0:02:35]} 11. cxd4 {[%emt 0:00:03]} Nxd4 {[%emt 0:00:37]} 12. Nxd4 {[%emt 0:00:03]} Bxd4 {[%emt 0:00:03]} 13. Bxh6 {[%emt 0:00:06]} Bxb2 {[%emt 0:00:17]} 14. Rb1 {[%emt 0:00:09]} Bg7 {[%emt 0:00:04]} 15. Bxg7 {[%emt 0:00:03]} Kxg7 {[%emt 0:00:06]} 16. Ne3 {[%emt 0:00:22]} Nf4 {[%emt 0:01:14]} 17. Bf1 {[%emt 0:03:14]} Qg5 {[%emt 0:00:15]} 18. Qd4+ {[%emt 0:00:14]} f6 {[%emt 0:03:22]} 19. Ng4 {[%emt 0:01:41]} Bxg4 {[%emt 0:00:19]} 20. hxg4 {[%emt 0:00:01]} b6 {[%emt 0:01:20]} 21. f3 {[%emt 0:00:02]} Ne6 {[%emt 0:00:42]} 22. Qd5 {[%emt 0:01:00]} Qe5 {[%emt 0:00:27]} 23. Bc4 {[%emt 0:00:43]} Rae8 {[%emt 0:00:13]} 24. Rbc1 {[%emt 0:00:10]} Qd4+ {[%emt 0:00:58]} 25. Qxd4 {[%emt 0:00:57]} Nxd4 {[%emt 0:00:02]} 26. Bd5 {[%emt 0:00:31]} c5 {[%emt 0:00:01]} 27. a4 {[%emt 0:00:09]} Re7 {[%emt 0:00:06]} 28. Kf2 {[%emt 0:00:06]} a6 {[%emt 0:00:03]} 29. Rb1 {[%emt 0:00:45]} b5 {[%emt 0:00:06]} 30. Red1 {[%emt 0:00:08]} Rb8 {[%emt 0:00:05]} 31. Ke3 {[%emt 0:00:28]} b4 {[%emt 0:00:17]} 32. Kd3 {[%emt 0:00:32]} a5 {[%emt 0:00:08]} 33. Kc4 {[%emt 0:00:54]} Nc2 {[%emt 0:00:12]} 34. Kb3 {[%emt 0:00:22]} Nd4+ {[%emt 0:00:18]} 35. Kc4 {[%emt 0:00:01]} g5 {[%emt 0:00:13]} 36. Rb2 {[%emt 0:00:04]} Rc7 {[%emt 0:00:12]} 37. Rf1 {[%emt 0:00:40]} Rh8 {[%emt 0:00:03]} 38. Rbf2 {[%emt 0:00:13]} Rh2 {[%emt 0:00:07]} 39. f4 {[%emt 0:01:04]} gxf4 {[%emt 0:01:12]} 40. Rxf4 {[%emt 0:00:01]} Rxg2 {[%emt 0:00:01]} 41. Rxf6 {[%emt 0:00:01]} Rc2+ {[%emt 0:00:02]} 42. Kd3 {[%emt 0:00:05]} Rc3+ {[%emt 0:00:05]} 43. Kd2 {[%emt 0:00:00]} Rc2+ {[%emt 0:00:02]} 44. Kd3 {[%emt 0:00:16]} Rc3+ {[%emt 0:00:01]} 45. Kd2 {[%emt 0:00:01]} c4 {[%emt 0:00:06]} 46. Rf8 {[%emt 0:00:06]} Rd3+ {[%emt 0:00:02]} 47. Ke1 {[%emt 0:00:12]} c3 {[%emt 0:00:01]} 48. Rg8+ {[%emt 0:00:01]} Kh6 {[%emt 0:00:11]} 49. Rh1+ {[%emt 0:00:01]} 1-0

[Event "27th Keres Memorial 2018"]
[Site "Tallinn"]
[Date "2018.01.14"]
[Round "11"]
[White "Shlykov, Vitali"]
[Black "Dubrovin, Robert"]
[Result "1-0"]
[ECO "A45"]
[WhiteElo "2289"]
[BlackElo "2251"]
[Annotator "ChessBase"]
[PlyCount "99"]
[EventDate "2018.??.??"]
[EventType "swiss"]
[EventCountry "EST"]
[SourceTitle "playchess.com"]
[Source "ChessBase"]
[SourceQuality "1"]
[TimeControl "900+5"]

1. d4 {[%emt 0:00:00]} Nf6 {[%emt 0:00:02]} 2. g3 {[%emt 0:00:00]} c5 {[%emt 0:00:38]} 3. d5 {[%emt 0:00:28]} b5 {[%emt 0:00:15]} 4. Bg2 {[%emt 0:00:11]} Bb7 {[%emt 0:00:00]} 5. a4 {[%emt 0:01:03]} b4 {[%emt 0:00:10]} 6. e4 {[%emt 0:01:15]} d6 {[%emt 0:00:01]} 7. b3 {[%emt 0:00:40]} g6 {[%emt 0:00:03]} 8. Bb2 {[%emt 0:00:02]} Bg7 {[%emt 0:00:01]} 9. Nd2 {[%emt 0:00:14]} O-O {[%emt 0:00:03]} 10. Nc4 {[%emt 0:00:31]} a5 {[%emt 0:00:19]} 11. Ne2 {[%emt 0:00:21]} Nbd7 {[%emt 0:00:03]} 12. O-O {[%emt 0:00:19]} Nb6 {[%emt 0:00:16]} 13. Ne3 {[%emt 0:00:50]} Rc8 {[%emt 0:01:25]} 14. c4 {[%emt 0:00:08]} bxc3 {[%emt 0:01:15]} 15. Bxc3 {[%emt 0:00:20]} Ba6 {[%emt 0:02:27]} 16. Ra2 {[%emt 0:02:14]} Nbd7 {[%emt 0:02:26]} 17. Qd2 {[%emt 0:01:28]} Qb6 {[%emt 0:02:52]} 18. Rb1 {[%emt 0:00:33]} Bxe2 {[%emt 0:01:03]} 19. Qxe2 {[%emt 0:00:04]} Ne8 {[%emt 0:00:24]} 20. Nc4 {[%emt 0:00:31]} Qa6 {[%emt 0:00:23]} 21. Bxa5 {[%emt 0:00:40]} Rb8 {[%emt 0:00:19]} 22. Qc2 {[%emt 0:00:45]} Rb7 {[%emt 0:00:05]} 23. Bf1 {[%emt 0:00:17]} Qa7 {[%emt 0:00:09]} 24. f4 {[%emt 0:00:37]} Bd4+ {[%emt 0:00:17]} 25. Kh1 {[%emt 0:00:12]} Nc7 {[%emt 0:00:05]} 26. Bh3 {[%emt 0:00:14]} Na6 {[%emt 0:00:28]} 27. Qe2 {[%emt 0:01:27]} Rfb8 {[%emt 0:00:14]} 28. Nd2 {[%emt 0:00:23]} Nb4 {[%emt 0:00:11]} 29. Bxb4 {[%emt 0:00:11]} Rxb4 {[%emt 0:00:06]} 30. Rc2 {[%emt 0:00:07]} Nb6 {[%emt 0:00:11]} 31. Rbc1 {[%emt 0:00:13]} Qb7 {[%emt 0:00:08]} 32. Qd3 {[%emt 0:00:04]} f5 {[%emt 0:00:09]} 33. Bg2 {[%emt 0:00:08]} Qd7 {[%emt 0:00:11]} 34. a5 {[%emt 0:00:09]} Nc8 {[%emt 0:00:07]} 35. Rc4 {[%emt 0:00:01]} fxe4 {[%emt 0:00:13]} 36. Bxe4 {[%emt 0:00:07]} Rxc4 {[%emt 0:00:21]} 37. Rxc4 {[%emt 0:00:09]} Qb5 {[%emt 0:00:08]} 38. a6 {[%emt 0:00:17]} Qxa6 39. Nf3 {[%emt 0:00:12]} Qa1+ {[%emt 0:00:10]} 40. Kg2 {[%emt 0:00:01]} Qb2+ {[%emt 0:00:01]} 41. Kh3 {[%emt 0:00:16]} Rxb3 {[%emt 0:00:01]} 42. Qc2 {[%emt 0:00:18]} Qxc2 {[%emt 0:00:29]} 43. Rxc2 {[%emt 0:00:01]} Bg7 {[%emt 0:00:07]} 44. Ng5 {[%emt 0:00:01]} Nb6 {[%emt 0:00:09]} 45. Ra2 {[%emt 0:00:05]} Bf6 {[%emt 0:00:03]} 46. Ne6 {[%emt 0:00:05]} c4 {[%emt 0:00:02]} 47. Ra7 {[%emt 0:00:10]} Re3 {[%emt 0:00:18]} 48. Rb7 {[%emt 0:00:03]} h6 {[%emt 0:00:07]} 49. Bxg6 {[%emt 0:00:05]} Nd7 {[%emt 0:00:07]} 50. Rxd7 {[%emt 0:00:04]} 1-0